{"text_format":"1","workbook":"xlsx","n_sheets":13,"sheets":["Results","Saturation","Variant flora","Level of difficulty","Production awareness","Difficulty of tool use","Number of tools available","Mapping","Parts identification","Information cost","Quality of instruction","PokeAyoke","Weighting"],"not_rendered":{"charts":22,"images":0,"macros":1,"external_links":1,"defined_names":4,"comments":1,"pivot_tables":0},"unopened":[],"bounds":{"document_bytes":16777216,"sheet_cells":100000,"rows_first":2000,"rows_last":500,"rows_between":2000,"halvings":0,"cell_chars":16384,"cell_head_chars":4096},"cells_cut":0,"cells_raw":0,"read":"whole","date_system":"1900"}

{"sheet":"Results","index":0,"n_rows":22,"n_cols":10,"rows_kept":22,"cut":false,"hidden":false,"merged":[[6,1,10,1],[12,1,17,1]]}
[]
[]
[]
[]
[]
[null,null,"Factor","Est","Weights","Results",null,null,"Interval"]
[null,"Task","Saturation",{"$f":"Saturation!C12","v":6},{"$f":"Weighting!AE4","v":0.17355371900826447},{"$f":"D7*E7","v":1.0413223140495869},null,null,"> 6","High cognitive load"]
[null,null,"Variant flora",{"$f":"'Variant flora'!C12","v":4},{"$f":"Weighting!AE5","v":0.10743801652892562},{"$f":"D8*E8","v":0.42975206611570249},null,3.2,"4-6","Moderate cognitive load"]
[null,null,"Level of difficulty",{"$f":"'Level of difficulty'!C12","v":6},{"$f":"Weighting!AE6","v":6.6115702479338845E-2},0.39669421487603307,null,1.7,"2-4","Low cognitive load"]
[null,null,"Difficulty of tool use",{"$f":"'Difficulty of tool use'!C12","v":6},{"$f":"Weighting!AE7","v":2.4793388429752067E-2},0.1487603305785124,null,1,"0-2","Very low cognitive load"]
[null,null,"Production awareness",{"$f":"'Production awareness'!C12","v":5},{"$f":"Weighting!AE8","v":7.43801652892562E-2},0.37190082644628097]
[]
[null,"Workstation","Number of tools available",{"$f":"'Number of tools available'!C12","v":8},{"$f":"Weighting!AE9","v":8.2644628099173556E-3},6.6115702479338845E-2]
[null,null,"Mapping",{"$f":"Mapping!C12","v":8},{"$f":"Weighting!AE10","v":0.13223140495867769},1.0578512396694215]
[null,null,"Parts identification",{"$f":"'Parts identification'!C12","v":4},{"$f":"Weighting!AE11","v":0.10743801652892562},0.42975206611570249]
[null,null,"Information cost",{"$f":"'Information cost'!C12","v":6},{"$f":"Weighting!AE12","v":0.12396694214876033},0.74380165289256195]
[null,null,"Quality of instruction",{"$f":"'Quality of instruction'!C12","v":8},{"$f":"Weighting!AE13","v":0.10743801652892562},0.85950413223140498]
[null,null,"Poke A Yoke & Constraints",{"$f":"PokeAyoke!C12","v":8},{"$f":"Weighting!AE14","v":7.43801652892562E-2},0.5950413223140496]
[]
[]
[]
[null,null,null,null,"Sum:",{"$f":"SUM(F7:F18)","v":6.1404958677685944}]

{"sheet":"Saturation","index":1,"n_rows":24,"n_cols":12,"rows_kept":24,"cut":false,"hidden":false,"merged":[[2,2,2,5]]}
[]
[null,"Saturation"]
[null,"Description","The saturation of a work station is related to the particular balance of the assembly tasks. Actual work operations can rarely occupy 100% of the available time and the saturation assessment indicates how much of the available time is occupied by work tasks."]
[]
[]
[]
[null,"Measurement:","Percentage of planned occupied time"]
[null,null,null,null,null,null,null,null,"Skala",null,"Visaren"]
[null,"How to evaluate (method)","Accurate time studies should be available in most SME's and larger organizations.",null,null,null,null,null,1,2,"Nuvärde",{"$f":"C12","v":6}]
[null,null,null,null,null,null,null,null,2,2,"Bredd",0.2]
[null,null,null,null,null,null,null,null,3,2,"Resten",{"$f":"J14-L10-L9","v":9.8000000000000007}]
[null,"Estimated current level",6,null,null,null,null,null,4,2]
[null,null,null,null,null,null,null,null,"Botten",{"$f":"J14/2","v":8}]
[null,null,null,null,null,null,null,null,"Summa",16]
[null,"Level","Description"]
[null,"L8","85% saturation or higher"]
[null,"L7"]
[null,"L6","75-85% saturation"]
[null,"L5"]
[null,"L4","65-75% saturation"]
[null,"L3"]
[null,"L2","65% saturation or lower"]
[null,"L1"]
[null,"L0","Not applicable"]

{"sheet":"Variant flora","index":2,"n_rows":24,"n_cols":12,"rows_kept":24,"cut":false,"hidden":false,"merged":[[2,2,2,5]]}
[]
[null,"Variant flora"]
[null,"Description","The variant flora is relevant to manufacturing organizations running a mixed mode assembly flow. A flow where volume and variant products are assembled intermixed and not according to a batching strategy. A variant is defined as product or process variation from the most common type of product."]
[]
[]
[]
[null,"Measurement:","Percentage of products being considered variant products."]
[null,null,null,null,null,null,null,null,"Skala",null,"Visaren"]
[null,"How to evaluate (method)","Assessment of what percentage of daily output is made up of variant products",null,null,null,null,null,1,2,"Nuvärde",{"$f":"C12","v":4}]
[null,null,null,null,null,null,null,null,2,2,"Bredd",0.2]
[null,null,null,null,null,null,null,null,3,2,"Resten",{"$f":"J14-L10-L9","v":11.8}]
[null,"Estimated current level",4,null,null,null,null,null,4,2]
[null,null,null,null,null,null,null,null,"Botten",{"$f":"J14/2","v":8}]
[null,null,null,null,null,null,null,null,"Summa",16]
[null,"Level","Description"]
[null,"L8","One piece production. Full variation."]
[null,"L7"]
[null,"L6","Up to 50% variant products"]
[null,"L5"]
[null,"L4","Up to 35% variant products."]
[null,"L3"]
[null,"L2","Up to 10% variant products."]
[null,"L1"]
[null,"L0","No variant products."]

{"sheet":"Level of difficulty","index":3,"n_rows":24,"n_cols":12,"rows_kept":24,"cut":false,"hidden":false,"merged":[[2,2,2,5]]}
[]
[null,"Level of difficulty"]
[null,"Description","The level of difficulty should be assessed on the entire station and is an estimation about the required physical and mental effort to perform a task"]
[]
[]
[]
[null,"Measurement:","Subjective"]
[null,null,null,null,null,null,null,null,"Skala",null,"Visaren"]
[null,"How to evaluate (method)","Observation; the assessment is divided into eight categories where the assessment should be based on how long it would take before a recently employed worker is allowed to work alone with the task.",null,null,null,null,null,1,2,"Nuvärde",{"$f":"C12","v":6}]
[null,null,null,null,null,null,null,null,2,2,"Bredd",0.2]
[null,null,null,null,null,null,null,null,3,2,"Resten",{"$f":"J14-L10-L9","v":9.8000000000000007}]
[null,"Estimated current level",6,null,null,null,null,null,4,2]
[null,null,null,null,null,null,null,null,"Botten",{"$f":"J14/2","v":8}]
[null,null,null,null,null,null,null,null,"Summa",16]
[null,"Level","Description"]
[null,"L8","The task is very difficult and requires significant training and experience."]
[null,"L7"]
[null,"L6","The task is slightly complex and requires moderate training and experience."]
[null,"L5"]
[null,"L4","The task is quite simple with little training required."]
[null,"L3"]
[null,"L2","The task requires little to no training and is recommended for newly employed personnel."]
[null,"L1"]
[null,"L0","Not applicable"]

{"sheet":"Production awareness","index":4,"n_rows":24,"n_cols":12,"rows_kept":24,"cut":false,"hidden":false,"merged":[[2,2,2,5]]}
[]
[null,"Production awareness"]
[null,"Description","An assessment on how much focused attention must be applied to the task and the level of \"production awareness\" that the worker has to muster."]
[]
[]
[]
[null,"Measurement:","Subjective"]
[null,null,null,null,null,null,null,null,"Skala",null,"Visaren"]
[null,"How to evaluate (method)","Observation according to levels",null,null,null,null,null,1,2,"Nuvärde",{"$f":"C12","v":5}]
[null,null,null,null,null,null,null,null,2,2,"Bredd",0.2]
[null,null,null,null,null,null,null,null,3,2,"Resten",{"$f":"J14-L10-L9","v":10.8}]
[null,"Estimated current level",5,null,null,null,null,null,4,2]
[null,null,null,null,null,null,null,null,"Botten",{"$f":"J14/2","v":8}]
[null,null,null,null,null,null,null,null,"Summa",16]
[null,"Level","Description"]
[null,"L8","The assembly task is highly variable and contains little to very little routine work."]
[null,"L7"]
[null,"L6","The assembly task is quite variable but still contains much routine work."]
[null,"L5"]
[null,"L4","The assembly task is mostly done on routine but deviant parts or assemblies do occur."]
[null,"L3"]
[null,"L2","The assembly task is done purely out of routine and the sequence seldom changes."]
[null,"L1"]
[null,"L0","Not applicable"]

{"sheet":"Difficulty of tool use","index":5,"n_rows":24,"n_cols":12,"rows_kept":24,"cut":false,"hidden":false,"merged":[[2,2,2,5]]}
[]
[null,"Difficulty of tool use"]
[null,"Description","The difficulty of tool use should be assessed station wide based on accessibility and operation of a tool. If several tools are used, the assessment should be a mean of these. All tool and fixture use is included in this factor, i.e. Power tools, hand tools, fixtures etc."]
[]
[]
[]
[null,"Measurement:","Subjective"]
[null,null,null,null,null,null,null,null,"Skala",null,"Visaren"]
[null,"How to evaluate (method)","Observation according to levels",null,null,null,null,null,1,2,"Nuvärde",{"$f":"C12","v":6}]
[null,null,null,null,null,null,null,null,2,2,"Bredd",0.2]
[null,null,null,null,null,null,null,null,3,2,"Resten",{"$f":"J14-L10-L9","v":9.8000000000000007}]
[null,"Estimated current level",6,null,null,null,null,null,4,2]
[null,null,null,null,null,null,null,null,"Botten",{"$f":"J14/2","v":8}]
[null,null,null,null,null,null,null,null,"Summa",16]
[null,"Level","Description"]
[null,"L8","The assembly task requires complex tools/tool use and/or special tools to perform"]
[null,"L7"]
[null,"L6","The assembly task contains moderate tool use of some complexity."]
[null,"L5"]
[null,"L4","The assembly task contains little to moderate tool use"]
[null,"L3"]
[null,"L2","The assembly task is performed mostly by hand and requires little or very simple tool use."]
[null,"L1"]
[null,"L0","No tool use"]

{"sheet":"Number of tools available","index":6,"n_rows":24,"n_cols":12,"rows_kept":24,"cut":false,"hidden":false,"merged":[[2,2,2,5]]}
[]
[null,"Number of tools available"]
[null,"Description","The number of tools available and used on the work station. This factor also includes fixtures and special contraptions that are used for work. If in doubt, include anything that is handled by the worker but that is not part of the product."]
[]
[]
[]
[null,"Measurement:","Assessment of tool availability"]
[null,null,null,null,null,null,null,null,"Skala",null,"Visaren"]
[null,"How to evaluate (method)","Observation according to levels",null,null,null,null,null,1,2,"Nuvärde",{"$f":"C12","v":8}]
[null,null,null,null,null,null,null,null,2,2,"Bredd",0.2]
[null,null,null,null,null,null,null,null,3,2,"Resten",{"$f":"J14-L10-L9","v":7.8000000000000007}]
[null,"Estimated current level",8,null,null,null,null,null,4,2]
[null,null,null,null,null,null,null,null,"Botten",{"$f":"J14/2","v":8}]
[null,null,null,null,null,null,null,null,"Summa",16]
[null,"Level","Description"]
[null,"L8","More than 8 tools"]
[null,"L7"]
[null,"L6","5-8 tools and not easily identified"]
[null,"L5"]
[null,"L4","More than 5 tools and easily identified"]
[null,"L3"]
[null,"L2","1 to 5 tools and easily identified"]
[null,"L1"]
[null,"L0","No tools used"]

{"sheet":"Mapping","index":7,"n_rows":24,"n_cols":12,"rows_kept":24,"cut":false,"hidden":false,"merged":[[2,2,2,5]]}
[]
[null,"Mapping of workstation"]
[null,"Description","The mapping of a workstation refers to the correspondence with the workstation layout to the assembly sequence. Are items and tools placed in the order that they are to be used?"]
[]
[]
[]
[null,"Measurement:","Subjective"]
[null,null,null,null,null,null,null,null,"Skala",null,"Visaren"]
[null,"How to evaluate (method)","Observation assessment on correspondence between workstation layout and assembly sequence for common products.",null,null,null,null,null,1,2,"Nuvärde",{"$f":"C12","v":8}]
[null,null,null,null,null,null,null,null,2,2,"Bredd",0.2]
[null,null,null,null,null,null,null,null,3,2,"Resten",{"$f":"J14-L10-L9","v":7.8000000000000007}]
[null,"Estimated current level",8,null,null,null,null,null,4,2]
[null,null,null,null,null,null,null,null,"Botten",{"$f":"J14/2","v":8}]
[null,null,null,null,null,null,null,null,"Summa",16]
[null,"Level","Description"]
[null,"L8","Workstation layout does not correspond to assembly sequence."]
[null,"L7"]
[null,"L6","Workstation layout somewhat corresponds to assembly sequence."]
[null,"L5"]
[null,"L4","Workstation layout heavily corresponds to assembly sequence."]
[null,"L3"]
[null,"L2","Workstation layout almost completely corresponds to assembly sequence."]
[null,"L1"]
[null,"L0","Not applicable/the worker is free to set up the workstation and all it's components to their own preferences."]

{"sheet":"Parts identification","index":8,"n_rows":24,"n_cols":12,"rows_kept":24,"cut":false,"hidden":false,"merged":[[2,2,2,5]]}
[]
[null,"Parts identification"]
[null,"Description","Parts identification can be done in several different ways. The traditional way is through article numbers and material racks but other approaches can include kitting and alternate parts identification syntaxes."]
[]
[]
[]
[null,"Measurement:","Selection"]
[null,null,null,null,null,null,null,null,"Skala",null,"Visaren"]
[null,"How to evaluate (method)","Determine type of parts identification system",null,null,null,null,null,1,2,"Nuvärde",{"$f":"C12","v":4}]
[null,null,null,null,null,null,null,null,2,2,"Bredd",0.2]
[null,null,null,null,null,null,null,null,3,2,"Resten",{"$f":"J14-L10-L9","v":11.8}]
[null,"Estimated current level",4,null,null,null,null,null,4,2]
[null,null,null,null,null,null,null,null,"Botten",{"$f":"J14/2","v":8}]
[null,null,null,null,null,null,null,null,"Summa",16]
[null,"Level","Description"]
[null,"L8","Majority of parts identification through article numbers."]
[null,"L7"]
[null,"L6","Majority of parts identification through symbol syntax or similar."]
[null,"L5"]
[null,"L4","Unsequenced kits or kanban is used for most items."]
[null,"L3"]
[null,"L2","Sequenced kits or kanban is used for most items."]
[null,"L1"]
[null,"L0","Not applicable"]

{"sheet":"Information cost","index":9,"n_rows":24,"n_cols":12,"rows_kept":24,"cut":false,"hidden":false,"merged":[[2,2,2,5]]}
[]
[null,"Information cost"]
[null,"Description","The cost of information can be described as an assessment of how much physical or cognitive effort that is required to utilize the information."]
[]
[]
[]
[null,"Measurement:","Subjective"]
[null,null,null,null,null,null,null,null,"Skala",null,"Visaren"]
[null,"How to evaluate (method)","Determine if access to information requires physical or cognitive effort.",null,null,null,null,null,1,2,"Nuvärde",{"$f":"C12","v":6}]
[null,null,null,null,null,null,null,null,2,2,"Bredd",0.2]
[null,null,null,null,null,null,null,null,3,2,"Resten",{"$f":"J14-L10-L9","v":9.8000000000000007}]
[null,"Estimated current level",6,null,null,null,null,null,4,2]
[null,null,null,null,null,null,null,null,"Botten",{"$f":"J14/2","v":8}]
[null,null,null,null,null,null,null,null,"Summa",16]
[null,"Level","Description"]
[null,"L8","Significant movement or actions are required for information access."]
[null,"L7"]
[null,"L6","Information is accessible through some cognitive or physical effort (several steps or visual search). "]
[null,"L5"]
[null,"L4","Information is no more than one step away and easily found."]
[null,"L3"]
[null,"L2","Information is not required for standard operations."]
[null,"L1"]
[null,"L0","No instructions required"]

{"sheet":"Quality of instruction","index":10,"n_rows":24,"n_cols":12,"rows_kept":24,"cut":false,"hidden":false,"merged":[[2,2,2,5]]}
[]
[null,"Quality of instruction"]
[null,"Description","The quality of instruction is a subjective measure that can be assessed according to several different factors. Focus on general visibility and readability of the instructions is recommended"]
[]
[]
[]
[null,"Measurement:","Subjective"]
[null,null,null,null,null,null,null,null,"Skala",null,"Visaren"]
[null,"How to evaluate (method)","Observation assessment on quality of instruction.",null,null,null,null,null,1,2,"Nuvärde",{"$f":"C12","v":8}]
[null,null,null,null,null,null,null,null,2,2,"Bredd",0.2]
[null,null,null,null,null,null,null,null,3,2,"Resten",{"$f":"J14-L10-L9","v":7.8000000000000007}]
[null,"Estimated current level",8,null,null,null,null,null,4,2]
[null,null,null,null,null,null,null,null,"Botten",{"$f":"J14/2","v":8}]
[null,null,null,null,null,null,null,null,"Summa",16]
[null,"Level","Description"]
[null,"L8","Instruction is filled with non priority information. Visibility AND readability is diminished."]
[null,"L7"]
[null,"L6","Assembly sequences are not clearly separated and visibility OR readability is diminished."]
[null,"L5"]
[null,"L4","Assembly sequences are separated and contains mostly relevant information"]
[null,"L3"]
[null,"L2","Assembly sequences are clearly separated and contains only relevant information"]
[null,"L1"]
[null,"L0","No instructions required"]

{"sheet":"PokeAyoke","index":11,"n_rows":24,"n_cols":12,"rows_kept":24,"cut":false,"hidden":false,"merged":[[2,2,2,5]]}
[]
[null,"Poke-a-yoke and constraints"]
[null,"Description","Using poke-a-yoke solutions or constraints in assembly is a common way to reduce assembly errors. This includes designing the task and/or the product so that assembly errors cannot be made."]
[]
[]
[]
[null,"Measurement:"]
[null,null,null,null,null,null,null,null,"Skala",null,"Visaren"]
[null,"How to evaluate (method)","Determine to what extent constraints or poke-a-yoke solutions exist.",null,null,null,null,null,1,2,"Nuvärde",{"$f":"C12","v":8}]
[null,null,null,null,null,null,null,null,2,2,"Bredd",0.2]
[null,null,null,null,null,null,null,null,3,2,"Resten",{"$f":"J14-L10-L9","v":7.8000000000000007}]
[null,"Estimated current level",8,null,null,null,null,null,4,2]
[null,null,null,null,null,null,null,null,"Botten",{"$f":"J14/2","v":8}]
[null,null,null,null,null,null,null,null,"Summa",16]
[null,"Level","Description"]
[null,"L8","No poke-a-yoke solutions are implemented in the task."]
[null,"L7"]
[null,"L6","Assembly constraints are present but not throughout the assembly sequence."]
[null,"L5"]
[null,"L4","Assembly constraints are present in most of the assembly sequence."]
[null,"L3"]
[null,"L2","Assembly errors can barely be made due to the design and fit of the product."]
[null,"L1"]
[null,"L0","Assembly errors cannot be made due to the design and fit of the product."]

{"sheet":"Weighting","index":12,"n_rows":30,"n_cols":32,"rows_kept":30,"cut":false,"hidden":false,"merged":[]}
["Weighting of factors","Modified from Olsson, Fredy (1995) Principkonstruktion. Lunds tekniska högskola, institutionen för maskinkonstruktion."]
["Compare the factors pair wise, AB, AC, AD, BC, BD etc.\nIf A is more important than B, type 2 in the cell A/B. \nIf A & B are equally important, type 1. \nIf A is less important than B, type 0.",null,{"$f":"A4","v":"Saturation"},{"$f":"A5","v":"Variant flora"},{"$f":"A6","v":"Level of difficulty"},{"$f":"A7","v":"Difficulty of tool use"},{"$f":"A8","v":"Production awareness"},{"$f":"A9","v":"Number of tools available"},{"$f":"A10","v":"Mapping"},{"$f":"A11","v":"Parts identification"},{"$f":"A12","v":"Information cost"},{"$f":"A13","v":"Quality of instruction"},{"$f":"A14","v":"Poke A Yoke & Constraints"},null,{"$f":"\"…\"&RIGHT($A16,10)","v":"…"},{"$f":"\"…\"&RIGHT($A17,10)","v":"…"},{"$f":"\"…\"&RIGHT($A18,10)","v":"…"},{"$f":"\"…\"&RIGHT($A19,10)","v":"…"},{"$f":"\"…\"&RIGHT($A20,10)","v":"…"},{"$f":"\"…\"&RIGHT($A21,10)","v":"…"},{"$f":"\"…\"&RIGHT($A22,10)","v":"…"},{"$f":"\"…\"&RIGHT($A23,10)","v":"…"},{"$f":"\"…\"&RIGHT($A24,10)","v":"…"},{"$f":"\"…\"&RIGHT($A25,10)","v":"…"},{"$f":"\"…\"&RIGHT($A26,10)","v":"…"},{"$f":"\"…\"&RIGHT($A27,10)","v":"…"},{"$f":"\"…\"&RIGHT($A28,10)","v":"…"},{"$f":"\"…\"&RIGHT($A29,10)","v":"…"}]
[null,null,"A","B","C","D","E","F","G","H","I","J","K","L","M","N","O","P","Q","R","S","T","U","V","W","X","Y","Z","Kf","∑","Vf","Rang"]
[{"$f":"Results!C7","v":"Saturation"},"A",0,2,2,2,2,2,2,2,2,2,2,null,null,null,null,null,null,null,null,null,null,null,null,null,null,null,1,{"$f":"IF(A4<>\"\",SUM(C4:AC4),1)","v":21},{"$f":"AD4/AD$30","v":0.17355371900826447},{"$f":"RANK(AE4,$AE$4:$AE$29)","v":1}]
[{"$f":"Results!C8","v":"Variant flora"},null,"B",{"$f":"-SUM(D$4:D4)","v":-2},1,2,2,2,1,0,1,1,2,null,null,null,null,null,null,null,null,null,null,null,null,null,null,null,3,{"$f":"IF(A5<>\"\",SUM(C5:AC5),0)","v":13},0.10743801652892562,4]
[{"$f":"Results!C9","v":"Level of difficulty"},null,null,"C",{"$f":"-SUM(E$4:E5)","v":-3},2,1,2,0,0,0,1,0,null,null,null,null,null,null,null,null,null,null,null,null,null,null,null,5,8,6.6115702479338845E-2,9]
[{"$f":"Results!C10","v":"Difficulty of tool use"},null,null,null,"D",{"$f":"-SUM(F$4:F6)","v":-6},0,2,0,0,0,0,0,null,null,null,null,null,null,null,null,null,null,null,null,null,null,null,7,3,2.4793388429752067E-2,10]
[{"$f":"Results!C11","v":"Production awareness"},null,null,null,null,"E",{"$f":"-SUM(G$4:G7)","v":-5},2,0,1,0,1,1,null,null,null,null,null,null,null,null,null,null,null,null,null,null,null,9,9,7.43801652892562E-2,7]
[{"$f":"Results!C13","v":"Number of tools available"},null,null,null,null,null,"F",{"$f":"-SUM(H$4:H8)","v":-10},0,0,0,0,0,null,null,null,null,null,null,null,null,null,null,null,null,null,null,null,11,1,8.2644628099173556E-3,11]
[{"$f":"Results!C14","v":"Mapping"},null,null,null,null,null,null,"G",{"$f":"-SUM(I$4:I9)","v":-3},1,1,2,2,null,null,null,null,null,null,null,null,null,null,null,null,null,null,null,13,16,0.13223140495867769,2]
[{"$f":"Results!C15","v":"Parts identification"},null,null,null,null,null,null,null,"H",{"$f":"-SUM(J$4:J10)","v":-4},1,0,1,null,null,null,null,null,null,null,null,null,null,null,null,null,null,null,15,13,0.10743801652892562,4]
[{"$f":"Results!C16","v":"Information cost"},null,null,null,null,null,null,null,null,"I",{"$f":"-SUM(K$4:K11)","v":-5},1,2,null,null,null,null,null,null,null,null,null,null,null,null,null,null,null,17,15,0.12396694214876033,3]
[{"$f":"Results!C17","v":"Quality of instruction"},null,null,null,null,null,null,null,null,null,"J",{"$f":"-SUM(L$4:L12)","v":-8},2,null,null,null,null,null,null,null,null,null,null,null,null,null,null,null,19,13,0.10743801652892562,4]
[{"$f":"Results!C18","v":"Poke A Yoke & Constraints"},null,null,null,null,null,null,null,null,null,null,"K",{"$f":"-SUM(M$4:M13)","v":-12},null,null,null,null,null,null,null,null,null,null,null,null,null,null,null,21,9,7.43801652892562E-2,7]
[null,null,null,null,null,null,null,null,null,null,null,null,"L",{"$f":"-SUM(N$4:N14)","v":0},null,null,null,null,null,null,null,null,null,null,null,null,null,null,23,0,0,12]
[null,null,null,null,null,null,null,null,null,null,null,null,null,"M",{"$f":"-SUM(O$4:O15)","v":0},null,null,null,null,null,null,null,null,null,null,null,null,null,25,0,0,12]
[null,null,null,null,null,null,null,null,null,null,null,null,null,null,"N",{"$f":"-SUM(P$4:P16)","v":0},null,null,null,null,null,null,null,null,null,null,null,null,27,0,0,12]
[null,null,null,null,null,null,null,null,null,null,null,null,null,null,null,"O",{"$f":"-SUM(Q$4:Q17)","v":0},null,null,null,null,null,null,null,null,null,null,null,29,0,0,12]
[null,null,null,null,null,null,null,null,null,null,null,null,null,null,null,null,"P",{"$f":"-SUM(R$4:R18)","v":0},null,null,null,null,null,null,null,null,null,null,31,0,0,12]
[null,null,null,null,null,null,null,null,null,null,null,null,null,null,null,null,null,"Q",{"$f":"-SUM(S$4:S19)","v":0},null,null,null,null,null,null,null,null,null,33,0,0,12]
[null,null,null,null,null,null,null,null,null,null,null,null,null,null,null,null,null,null,"R",{"$f":"-SUM(T$4:T20)","v":0},null,null,null,null,null,null,null,null,35,0,0,12]
[null,null,null,null,null,null,null,null,null,null,null,null,null,null,null,null,null,null,null,"S",{"$f":"-SUM(U$4:U21)","v":0},null,null,null,null,null,null,null,37,0,0,12]
[null,null,null,null,null,null,null,null,null,null,null,null,null,null,null,null,null,null,null,null,"T",{"$f":"-SUM(V$4:V22)","v":0},null,null,null,null,null,null,39,0,0,12]
[null,null,null,null,null,null,null,null,null,null,null,null,null,null,null,null,null,null,null,null,null,"U",{"$f":"-SUM(W$4:W23)","v":0},null,null,null,null,null,41,0,0,12]
[null,null,null,null,null,null,null,null,null,null,null,null,null,null,null,null,null,null,null,null,null,null,"V",{"$f":"-SUM(X$4:X24)","v":0},null,null,null,null,43,0,0,12]
[null,null,null,null,null,null,null,null,null,null,null,null,null,null,null,null,null,null,null,null,null,null,null,"W",{"$f":"-SUM(Y$4:Y25)","v":0},null,null,null,45,0,0,12]
[null,null,null,null,null,null,null,null,null,null,null,null,null,null,null,null,null,null,null,null,null,null,null,null,"X",{"$f":"-SUM(Z$4:Z26)","v":0},null,null,47,0,0,12]
[null,null,null,null,null,null,null,null,null,null,null,null,null,null,null,null,null,null,null,null,null,null,null,null,null,"Y",{"$f":"-SUM(AA$4:AA27)","v":0},null,49,0,0,12]
[null,null,null,null,null,null,null,null,null,null,null,null,null,null,null,null,null,null,null,null,null,null,null,null,null,null,"Z",{"$f":"-SUM(AB$4:AB28)","v":0},51,0,0,12]
[null,null,null,null,null,null,null,null,null,null,null,null,null,null,null,null,null,null,null,null,null,null,null,null,null,null,null,null,"Tot",{"$f":"SUM(AD4:AD29)","v":121},{"$f":"SUM(AE4:AE29)","v":0.99999999999999989}]